fUSD/lending_fUSD_20241018
["ID","MTS","AMOUNT","RATE_DAILY","PERIOD"]
[340404233,1729209636511,305.09,8.334e-05,2]
[340404235,1729209650764,369.0,0.00025,120]
[340404237,1729209740534,-1235.20136415,0.00010999,3]
[340404239,1729209788071,200.0,0.00010238,2]
[340404241,1729209793000,-250.0,0.00010408,2]
[340404242,1729209793022,-305.09,0.00010598,2]
[340404243,1729209793043,-606.4301,0.000106,2]
[340404244,1729209793064,-300.0,0.00010699,2]
[340404245,1729209793087,-1320.78,0.000107,2]
[340404246,1729209793107,-3497.970885,0.000107,2]
[340404247,1729209793128,-601.4324,0.000107,2]
[340404248,1729209793148,-1330.0743,0.000107,2]
[340404249,1729209793172,-175.9212,0.000107,2]
[340404250,1729209793192,-150.0,0.00010792,2]
[340404251,1729209793212,-268.59941427,0.00010799,2]
[340404252,1729209793233,-43958.50033658,0.000108,2]
[340404253,1729209822723,296.39101175,0.00015,30]
[340404254,1729209870731,150.0,0.00024649,120]
[340404256,1729209931472,150.0,0.00024042,120]
[340404258,1729210029115,-250.0,0.00010523,2]
[340404259,1729210029139,-704.4755,0.000107,2]
[340404260,1729210029161,-179.06627618,0.00010799,2]
[340404261,1729210029184,-150.0,0.00010799,2]
[340404262,1729210029204,-300.0,0.00010799,2]
[340404263,1729210029226,-2781.07889684,0.000108,2]
[340404267,1729210110731,150.0,0.0002438,120]
[340404274,1729210231792,-162.57,0.00010589,2]
[340404275,1729210231802,-150.01,0.00010799,2]
[340404276,1729210231812,-150.0,0.00010799,2]
[340404277,1729210231822,-129.2228466,0.00010799,2]
[340404278,1729210231844,-170.7771534,0.00010799,2]
[340404279,1729210231858,-8651.81676413,0.000108,2]
[340404280,1729210231953,-63943.34945576,0.000108,2]
[340404281,1729210232033,-17125.60968514,0.000108,2]
[340404282,1729210232044,-261.50797829,0.000108,2]
[340404291,1729210237716,-3004.71627163,0.000108,2]
[340404292,1729210237822,-38932.42338048,0.000108,2]
[340404307,1729210239556,-833.95863695,0.000108,2]
[340404319,1729210239715,-3224.27037394,0.000108,2]
[340404321,1729210239726,-23776.19389263,0.000108,2]
[340404325,1729210239771,-16204.19439125,0.000108,2]
[340404326,1729210239825,-628.31545513,0.000108,2]
[340404327,1729210239836,-300.0,0.000108,2]
[340404328,1729210239849,-365.805,0.000108,2]
[340404337,1729210242651,-55625.94710524,0.000108,2]
[340404338,1729210242663,-4996.95801704,0.000108,2]
[340404339,1729210242705,-301.76735426,0.000108,2]
[340404340,1729210242890,-1041.25229512,0.000108,2]
[340404341,1729210243074,-446.39999929,0.000108,2]
[340404342,1729210244348,-196098.79172829,0.000108,2]
[340404343,1729210244358,-7500.0,0.00010898,2]
[340404344,1729210244369,-14437.91407249,0.00010898,2]
[340404345,1729210244379,-1705.69727349,0.00010899,2]
[340404346,1729210244389,-1705.69727341,0.00010899,2]
[340404347,1729210244400,-1705.69727341,0.00010899,2]
[340404348,1729210244410,-1705.69727341,0.00010899,2]
[340404349,1729210244421,-1705.69727341,0.00010899,2]
[340404350,1729210244430,-1705.69727341,0.00010899,2]
[340404351,1729210244440,-1705.69727341,0.00010899,2]
[340404352,1729210244450,-1705.69727341,0.00010899,2]
[340404353,1729210244460,-1705.69727341,0.00010899,2]
[340404354,1729210244470,-4230.9221,0.000109,2]
[340404355,1729210244480,-365.60283601,0.000109,2]
[340404356,1729210244490,-318.52954781,0.000109,2]
[340404357,1729210244500,-1705.69727341,0.000109,2]
[340404358,1729210244510,-1137.99310148,0.000109,2]
[340404359,1729210244521,-10883.38395874,0.000109,2]
[340404360,1729210244531,-1171.84932042,0.000109,2]
[340404361,1729210244541,-4116.92167623,0.000109,2]
[340404362,1729210244551,-410.147,0.00010905,2]
[340404363,1729210244562,-222.0,0.00010945,2]
[340404364,1729210244571,-557.29604581,0.00010958,2]
[340404365,1729210244582,-500.0,0.00010958,2]
[340404366,1729210244593,-500.0,0.00010958,2]
[340404367,1729210244603,-500.0,0.00010958,2]
[340404368,1729210244616,-272.27833357,0.00010958,2]
[340404369,1729210244626,-500.0,0.00010958,2]
[340404370,1729210244635,-500.0,0.00010958,2]
[340404371,1729210244645,-500.0,0.00010958,2]
[340404372,1729210244655,-500.0,0.00010958,2]
[340404373,1729210244664,-500.0,0.00010958,2]
[340404374,1729210244674,-500.0,0.00010958,2]
[340404375,1729210244684,-500.0,0.00010958,2]
[340404376,1729210244694,-350.0,0.00010958,2]
[340404377,1729210244703,-500.0,0.00010958,2]
[340404378,1729210244713,-183.61460908,0.00010958,2]
[340404379,1729210244723,-500.0,0.00010958,2]
[340404380,1729210244733,-518.12823942,0.00010958,2]
[340404381,1729210244742,-500.0,0.00010958,2]
[340404382,1729210244751,-176.34629431,0.00010958,2]
[340404383,1729210244760,-500.0,0.00010958,2]
[340404384,1729210244770,-500.0,0.00010958,2]
[340404385,1729210244780,-500.0,0.00010958,2]
[340404386,1729210244789,-500.0,0.00010958,2]
[340404387,1729210244798,-500.0,0.00010958,2]
[340404388,1729210244808,-500.0,0.00010958,2]
[340404389,1729210244818,-591.93365217,0.00010958,2]
[340404390,1729210244827,-150.99,0.00010958,2]
[340404391,1729210244837,-499.99,0.00010958,2]
[340404392,1729210244847,-251.92,0.00010959,2]
[340404393,1729210244856,-160.32,0.00010959,2]
[340404394,1729210244867,-154.24,0.00010959,2]
[340404395,1729210244877,-159.52,0.00010959,2]
[340404396,1729210244887,-475.37,0.00010959,2]
[340404397,1729210244898,-150.0,0.00010959,2]
[340404398,1729210244907,-250.0,0.00010959,2]
[340404399,1729210244917,-264.91,0.00010959,2]
[340404400,1729210244927,-160.95,0.00010959,2]
[340404401,1729210244936,-700.02,0.00010959,2]
[340404402,1729210244947,-806.48,0.00010959,2]
[340404403,1729210244957,-500.0,0.00010973,2]
[340404404,1729210244966,-151.0,0.00010992,2]
[340404405,1729210244976,-494.0681234,0.00010992,2]
[340404406,1729210244985,-357.2981856,0.00010992,2]
[340404407,1729210244995,-47321.9665082,0.00010992,2]
[340404408,1729210245004,-148386.41300001,0.00010998,2]
[340404409,1729210245014,-906.73,0.00010998,2]
[340404410,1729210245024,-756032.54618182,0.00011,2]
[340404411,1729210245035,-3420065.07786794,0.00011,2]
[340404413,1729210246037,-6227.20325816,0.00011,2]
[340404415,1729210294892,298.71,9.36e-05,2]
[340404417,1729210352708,19884.215,0.00011,15]
[340404420,1729210466954,9942.1075,0.00011,15]
[340404422,1729210504741,208.0,0.00025,120]
[340404424,1729210561769,600.0,0.000103,3]
[340404425,1729210563867,1200.0,0.000104,3]
[340404426,1729210575392,250.0,0.00010354,2]
[340404427,1729210592638,4971.05375,0.00011,15]
[340404429,1729210692474,550.0,0.0001,2]
[340404431,1729210699262,1562.56,0.00010287,2]
[340404432,1729210706857,3985.526875,0.00011,15]
[340404434,1729210813705,308.08,8.219e-05,2]
[340404436,1729210824767,160.0,0.00010131,2]
[340404437,1729210826800,1992.7634375,0.00011,15]
[340404439,1729210894400,12223.67,0.00010098,2]
[340404441,1729210918680,2620.36,0.00010141,2]
[340404442,1729210947222,996.38171875,0.00011,15]
[340404443,1729211015347,23070.74,0.00010125,2]
[340404444,1729211048639,152.85,0.00010152,2]
[340404445,1729211062390,1201.36,0.00010152,2]
[340404446,1729211062687,344.52,0.00010152,2]
[340404447,1729211073425,498.19085938,0.00011,15]
[340404448,1729211083520,250.0,0.00010194,2]
[340404449,1729211094414,1491.59,0.00010194,2]
[340404450,1729211096000,250.0,0.00010194,2]
[340404455,1729211190464,249.09542969,0.00011,15]
[340404458,1729211230774,500.0,0.000102,3]
[340404459,1729211231250,-1683.193249,0.0001043,2]
[340404460,1729211231271,-308.08,0.00010483,2]
[340404461,1729211231291,-1897.85135707,0.00010545,2]
[340404462,1729211232880,1100.0,0.000103,3]
[340404463,1729211235311,1600.0,0.000104,3]
[340404464,1729211274401,724.95784973,0.00013,15]
[340404465,1729211305255,172.08,8.249e-05,2]
[340404466,1729211307019,249.09542967,0.00011,15]
[340404467,1729211309882,370.67,8.434e-05,2]
[340404479,1729211417502,160.69,8.469e-05,2]
[340404484,1729211431803,-1474.18482912,0.000105,3]
[340404485,1729211431858,-398.2,0.000105,3]
[340404486,1729211431919,-327.61517088,0.000105,3]
[340404487,1729211431930,-420.15464293,0.00010545,2]
[340404488,1729211431939,-252.35,0.00010546,2]
[340404489,1729211431950,-1299.89947028,0.000106,3]
[340404490,1729211432009,-1400.10052972,0.000106,3]
[340404491,1729211432018,-1988.89947028,0.00010698,2]
[340404492,1729211432049,-834.06811505,0.00010698,2]
[340404493,1729211432060,-1529.44484971,0.00010698,2]
[340404494,1729211432072,-9284.85969943,0.00010698,2]
[340404495,1729211432082,-370.67,0.00010698,2]
[340404496,1729211432091,-150.0,0.00010699,2]
[340404497,1729211432100,-827.9067,0.000107,2]
[340404498,1729211432109,-5367.58055478,0.000107,2]
[340404499,1729211432129,-33142.14984522,0.000107,2]
[340404500,1729211432139,-756.07,0.000107,2]
[340404502,1729211432148,-500.0,0.000107,3]
[340404504,1729211432158,-500.0,0.000108,3]
[340404505,1729211432168,-20733.3007,0.000109,2]
[340404507,1729211432178,-1724.4573,0.000109,2]
[340404508,1729211432187,-18304.0275,0.000109,2]
[340404509,1729211432197,-213.8018,0.000109,2]
[340404510,1729211432207,-506.6185,0.000109,2]
[340404511,1729211432216,-1901.4562,0.000109,2]
[340404512,1729211432225,-31595.2805,0.000109,2]
[340404513,1729211432235,-633.2,0.000109,2]
[340404514,1729211432244,-328.118,0.000109,2]
[340404515,1729211432254,-595.8126,0.000109,2]
[340404516,1729211432263,-13377.22037912,0.000109,2]
[340404517,1729211437849,-785.23100942,0.000109,2]
[340404518,1729211437906,-575.61,0.000109,2]
[340404519,1729211437917,-782.53154917,0.000109,2]
[340404520,1729211437931,-276.73994888,0.000109,2]
[340404521,1729211438018,-253.33701341,0.000109,2]
[340404522,1729211438027,-301.13456551,0.000109,2]
[340404523,1729211438073,-1754.71913449,0.000109,2]
[340404524,1729211438083,-179.02675744,0.000109,2]
[340404525,1729211438092,-184.43602903,0.000109,2]
[340404526,1729211438184,-1198.64987097,0.000109,2]
[340404527,1729211438194,-38650.311,0.000109,2]
[340404528,1729211438204,-7500.0,0.000109,2]
[340404529,1729211438213,-500.0,0.000109,3]
[340404530,1729211438222,-1154.26906258,0.000109,2]
[340404531,1729211438232,-3042.13089585,0.000109,2]
[340404532,1729211438241,-1763.88408526,0.000109,2]
[340404533,1729211438250,-217.12067785,0.000109,2]
[340404534,1729211438259,-500.0,0.00010958,2]
[340404535,1729211438269,-429.3568873,0.00010958,2]
[340404536,1729211438278,-263.42,0.00010959,2]
[340404537,1729211438287,-250.0,0.00010959,2]
[340404538,1729211438296,-150.0,0.00010959,2]
[340404539,1729211438305,-160.32,0.00010959,2]
[340404540,1729211438315,-465.47,0.00010959,2]
[340404541,1729211438324,-499.99,0.00010959,2]
[340404542,1729211438334,-208.12255236,0.00010999,2]
[340404543,1729211438343,-500.0,0.00010999,2]
[340404544,1729211438353,-303.19267729,0.00010999,2]
[340404545,1729211438362,-1002782.12872546,0.00011,2]
[340404565,1729211439852,-963.61995786,0.00011,2]
[340404566,1729211439864,-903.50145406,0.00011,2]
[340404567,1729211439886,-2231.6994,0.00011,2]
[340404568,1729211439897,-1235.75000002,0.00011,2]
[340404569,1729211439923,-794.294973,0.00011,2]
[340404570,1729211439977,-5630.65158727,0.00011,2]
[340404572,1729211440182,-22900.82877106,0.00011,2]
[340404573,1729211440194,-781.43999999,0.00011,2]
[340404575,1729211440205,-27214.48604709,0.00011,2]
[340404577,1729211440216,-49690.07854395,0.00011,2]
[340404589,1729211442893,-754.28271799,0.00011,2]
[340404595,1729211445823,-3134.6067,0.00011,2]
[340404596,1729211445835,-23976.2679096,0.00011,2]
[340404597,1729211445886,-78761.90852796,0.00011,2]
[340404598,1729211446044,-287.57349303,0.00011,2]
[340404608,1729211446555,-631.63706225,0.00011,2]
[340404609,1729211447412,-3293.76144614,0.00011,2]
[340404610,1729211447423,-8414.58030777,0.00011,2]
[340404618,1729211815965,356.85,9.255e-05,2]
[340404627,1729212037796,400.0,9.25e-05,3]
[340404628,1729212091007,430.0,9.25e-05,3]
[340404642,1729212310497,772.84,0.00025,120]
[340404643,1729212323463,362.35,8.574e-05,2]
[340404644,1729212324924,772.84,0.00025,120]
[340404650,1729212435261,4241.99,0.00010393,2]
[340404652,1729212454116,-250.0,0.00010448,2]
[340404653,1729212454137,-1790.50497764,0.000107,2]
[340404661,1729212506946,550.0,0.0001,2]
[340404668,1729212632030,-6178.12542846,0.000105,2]
[340404669,1729212632041,-1049.29971344,0.000105,2]
[340404670,1729212632050,-986.59645252,0.00010574,2]
[340404671,1729212632062,-13.40354748,0.00010574,2]
[340404672,1729212632071,-3490.67135546,0.000106,2]
[340404673,1729212632082,-339.25084454,0.000106,2]
[340404674,1729212632091,-1402.0,0.000107,2]
[340404675,1729212632101,-362.35,0.00010838,2]
[340404676,1729212632113,-150.0,0.00010877,2]
[340404677,1729212632123,-150.0,0.00010899,2]
[340404678,1729212632133,-2369.51893121,0.000109,2]
[340404679,1729212632159,-144.50056879,0.000109,2]
[340404680,1729212632168,-555.49943121,0.000109,2]
[340404681,1729212632179,-1527.79106879,0.000109,2]
[340404682,1729212632188,-179.02675744,0.000109,2]
[340404683,1729212632197,-5026.48217377,0.000109,2]
[340404684,1729212632209,-592.36206145,0.000109,2]
[340404685,1729212632220,-1881.15576478,0.000109,2]
[340404686,1729212632230,-4113.90195176,0.000109,2]
[340404687,1729212632240,-4595.41393834,0.000109,2]
[340404688,1729212632250,-8863.0,0.000109,2]
[340404689,1729212632259,-154.66,0.00010959,2]
[340404690,1729212632268,-372.37,0.00010959,2]
[340404691,1729212632277,-159.52,0.00010959,2]
[340404692,1729212632288,-175.62308792,0.0001099,2]
[340404693,1729212632298,-241.87466059,0.00010999,2]
[340404694,1729212632311,-3558.89002495,0.00010999,2]
[340404696,1729212632322,-868.95,0.00010999,2]
[340404698,1729212632333,-175.67,0.00011,2]
[340404701,1729212632344,-558.0,0.00011,2]
[340404702,1729212632355,-499.99,0.00011,2]
[340404703,1729212632366,-3050.14990119,0.00011,2]
[340404705,1729212632378,-966.03305,0.00011,2]
[340404707,1729212632389,-952.93025219,0.00011,2]
[340404709,1729212632400,-663.698535,0.00011,2]
[340404711,1729212632411,-2966.48754,0.00011,2]
[340404712,1729212632425,-809.17473513,0.00011,2]
[340404715,1729212632473,-5243.29172088,0.00011,2]
[340404716,1729212632484,-1098.10124655,0.00011,2]
[340404717,1729212632496,-688.39999162,0.00011,2]
[340404718,1729212632512,-2194.55656055,0.00011,2]
[340404719,1729212632522,-278.60878409,0.00011,2]
[340404720,1729212632533,-541.65536624,0.00011,2]
[340404721,1729212632544,-45063.46960216,0.00011,2]
[340404722,1729212632562,-450.44936041,0.00011,2]
[340404723,1729212632575,-1963.7448324,0.00011,2]
[340404724,1729212632588,-2218.35862201,0.00011,2]
[340404725,1729212632599,-2301.70685188,0.00011,2]
[340404726,1729212632632,-257204.76221135,0.00011,2]
[340404727,1729212638054,-2901.32341379,0.00011,2]
[340404728,1729212638065,-1264.43557993,0.00011,2]
[340404730,1729212638111,-60623.6194259,0.00011,2]
[340404731,1729212638121,-94843.52215609,0.00011,2]
[340404732,1729212638132,-4222.68389504,0.00011,2]
[340404733,1729212638147,-2984.0,0.00011,2]
[340404734,1729212638170,-4888.31144994,0.00011,2]
[340404735,1729212638181,-301235.77676337,0.00011,2]
[340404736,1729212638226,-1366.31846331,0.00011,2]
[340404737,1729212638337,-699.69900693,0.00011,2]
[340404738,1729212638348,-13142.68775836,0.00011,2]
[340404739,1729212638361,-232583.47044262,0.00011,2]
[340404740,1729212638372,-2953.88686576,0.00011,2]
[340404741,1729212638387,-845.302431,0.00011,2]
[340404744,1729212640074,-2110.66568425,0.00011,2]
[340404745,1729212640085,-794.79791123,0.00011,2]
[340404746,1729212640172,-998.486475,0.00011,2]
[340404747,1729212640191,-969.65529697,0.00011,2]
[340404748,1729212640247,-391.951146,0.00011,2]
[340404749,1729212640302,-525.73717113,0.00011,2]
[340404750,1729212640576,-397.95,0.00011,2]
[340404751,1729212640587,-1707.20808955,0.00011,2]
[340404752,1729212640604,-5563.45854238,0.00011,2]
[340404753,1729212640620,-1727.99999992,0.00011,2]
[340404754,1729212640632,-6664.80077973,0.00011,2]
[340404755,1729212640643,-4218.43884436,0.00011,2]
[340404756,1729212640655,-100045.32821675,0.00011,2]
[340404757,1729212640667,-2383.28089997,0.00011,2]
[340404765,1729212643039,-4638.83211183,0.00011,2]
[340404766,1729212643097,-1302.1840501,0.00011,2]
[340404767,1729212643207,-509.0,0.00011,2]
[340404768,1729212643217,-1788.55648938,0.00011,2]
[340404769,1729212643229,-6306.89951231,0.00011,2]
[340404770,1729212643263,-6130.62450001,0.00011,2]
[340404771,1729212643277,-4924.92,0.00011,2]
[340404772,1729212643319,-1371.56063522,0.00011,2]
[340404773,1729212643331,-359.73856219,0.00011,2]
[340404774,1729212643344,-6406.96811911,0.00011,2]
[340404775,1729212643355,-7300.0,0.00011,2]
[340404776,1729212643377,-5420.415,0.00011,2]
[340404777,1729212646017,-16240.02258674,0.00011,2]
[340404778,1729212646127,-1073.12504633,0.00011,2]
[340404779,1729212646293,-4934.2712812,0.00011,2]
[340404780,1729212646317,-21664.23750584,0.00011,2]
[340404781,1729212646336,-81409.49999999,0.00011,2]
[340404787,1729212855930,326.11,8.955e-05,2]
[340404790,1729212952539,1585.83,0.00010259,2]
[340404792,1729213020179,1585.3,0.00010263,2]
[340404795,1729213056851,155.4,0.00010255,2]
[340404796,1729213094547,200.0,0.00010255,2]
[340404797,1729213208433,428.93,0.00010203,2]
[340404798,1729213240447,111680.41,0.00010282,2]
[340404803,1729213288426,500.0,0.00010234,2]
[340404804,1729213359457,23890.0,0.00010232,2]
[340404805,1729213389771,250.0,0.0001032,2]
[340404806,1729213429467,350.77,8.522e-05,2]
[340404807,1729213556474,250.0,0.00010298,2]
[340404808,1729213642135,-183.0,0.00010441,2]
[340404809,1729213642157,-3949.21643887,0.00010501,2]
[340404810,1729213662880,840.0,0.00010297,2]
[340404811,1729213709728,161.39599404,0.00025,120]
[340404812,1729213715335,214.46,0.00010265,2]
[340404813,1729213727455,171.92,0.00010265,2]
[340404814,1729213747785,401.32000072,0.00025,120]
[340404817,1729213788507,8192.48,0.0001026,2]
[340404819,1729213832251,-81.97356113,0.00010501,2]
[340404820,1729213832260,-500.0,0.00010771,2]
[340404821,1729213832269,-500.0,0.00010771,2]
[340404822,1729213832279,-235.70784947,0.00010771,2]
[340404823,1729213832288,-350.77,0.00010786,2]
[340404824,1729213832297,-1622.20893831,0.000108,2]
[340404825,1729213832373,-450.0,0.000108,2]
[340404826,1729213832385,-708.86995853,0.000108,2]
[340404827,1729213832394,-91.13004147,0.0001085,2]
[340404828,1729213832406,-58.86995853,0.0001085,2]
[340404829,1729213832416,-555.0,0.0001085,2]
[340404830,1729213832426,-2404.80275867,0.0001085,2]
[340404831,1729213832492,-250.64024133,0.0001085,2]
[340404832,1729213832502,-1723.49712601,0.00010858,2]
[340404833,1729213832512,-183.50287399,0.00010858,2]
[340404834,1729213832521,-809.0,0.00010858,2]
[340404835,1729213832530,-1150.0,0.0001088,2]
[340404836,1729213832541,-248.261,0.0001088,2]
[340404837,1729213832550,-347.59697442,0.0001088,2]
[340404838,1729213832564,-1592.89895978,0.0001088,2]
[340404842,1729213838271,-1844.3250658,0.0001088,2]
[340404844,1729213838281,-1084.0,0.0001088,2]
[340404845,1729213838291,-1000.0,0.00010899,2]
[340404846,1729213838301,-150.0,0.00010899,2]
[340404847,1729213838313,-150.99,0.00010899,2]
[340404848,1729213838324,-5780.2197,0.000109,2]
[340404849,1729213838333,-2507.0153,0.000109,2]
[340404850,1729213838343,-497.20461509,0.000109,2]
[340404851,1729213838361,-7780.72978491,0.000109,2]
[340404852,1729213838371,-1299.5439,0.000109,2]
[340404853,1729213838381,-355.7179,0.000109,2]
[340404854,1729213838390,-3009.6882,0.000109,2]
[340404855,1729213838400,-3976.051,0.000109,2]
[340404856,1729213838410,-151.34010265,0.000109,2]
[340404857,1729213838419,-3392.4181,0.000109,2]
[340404858,1729213838428,-173.97609633,0.000109,2]
[340404859,1729213838438,-7500.0,0.000109,2]
[340404860,1729213838447,-704.4755,0.000109,2]
[340404861,1729213838457,-1651.0,0.000109,2]
[340404862,1729213838466,-945.06673967,0.000109,2]
[340404863,1729213838476,-4334.99448585,0.000109,2]
[340404864,1729213838485,-774.22320021,0.000109,2]
[340404865,1729213838495,-162.26520813,0.000109,2]
[340404866,1729213838505,-175.67193515,0.00010905,2]
[340404867,1729213838515,-497.384,0.00010905,2]
[340404868,1729213838524,-159.65,0.00010959,2]
[340404869,1729213838534,-297.89,0.00010959,2]
[340404870,1729213838543,-250.24,0.00010959,2]
[340404871,1729213838553,-499.99,0.00010959,2]
[340404872,1729213838563,-250.0,0.00010959,2]
[340404873,1729213838573,-211.94,0.00010959,2]
[340404874,1729213838582,-176.61,0.00010959,2]
[340404875,1729213838592,-883.09,0.00010959,2]
[340404876,1729213838601,-150.0,0.00010959,2]
[340404877,1729213838610,-4059.22,0.00010959,2]
[340404878,1729213838620,-500.0,0.00010973,2]
[340404879,1729213838629,-500.0,0.00010973,2]
[340404880,1729213838639,-325.7555827,0.00010994,2]
[340404881,1729213838648,-209.0789883,0.00010994,2]
[340404882,1729213838658,-15541.1928694,0.00010994,2]
[340404883,1729213838667,-213.33630603,0.00010999,2]
[340404884,1729213838677,-832.75,0.00010999,2]
[340404885,1729213838686,-179.06627618,0.00010999,2]
[340404886,1729213838696,-500.0,0.00010999,2]
[340404887,1729213838705,-166.95653574,0.00010999,2]
[340404888,1729213838714,-505.86774976,0.00010999,2]
[340404889,1729213838724,-271766.23361013,0.00011,2]
[340404890,1729213838764,-3204.43052,0.00011,2]
[340404891,1729213838786,-136444.79,0.00011,2]
[340404892,1729213838797,-677.06162226,0.00011,2]
[340404893,1729213838808,-308.79461567,0.00011,2]
[340404894,1729213838820,-944.18934277,0.00011,2]
[340404895,1729213838843,-918.84607546,0.00011,2]
[340404897,1729213840271,-252.075,0.00011,2]
[340404898,1729213840283,-2004.11983151,0.00011,2]
[340404899,1729213840294,-2304.50018838,0.00011,2]
[340404900,1729213840341,-96904.15840643,0.00011,2]
[340404901,1729213840394,-18422.09606301,0.00011,2]
[340404902,1729213840407,-18030.00012,0.00011,2]
[340404903,1729213840441,-93840.53247452,0.00011,2]
[340404904,1729213840452,-2428.82248886,0.00011,2]
[340404905,1729213840464,-783.24305322,0.00011,2]
[340404906,1729213840695,-1777.7292,0.00011,2]
[340404907,1729213840811,-8522.63958282,0.00011,2]
[340404908,1729213840824,-1469.6911387,0.00011,2]
[340404909,1729213840835,-4291.60144625,0.00011,2]
[340404910,1729213840848,-4019.09127962,0.00011,2]
[340404911,1729213840859,-315.6,0.00011,2]
[340405168,1729213843779,-38109.53175681,0.00011,2]
[340405171,1729213843791,-17425.3167448,0.00011,2]
[340405173,1729213843802,-16268.07293523,0.00011,2]
[340405175,1729213843817,-650.11406641,0.00011,2]
[340405181,1729213843865,-788.47031821,0.00011,2]
[340405257,1729213846251,-1719.5754,0.00011,2]
[340405258,1729213846262,-1500.1,0.00011,2]
[340405259,1729213846312,-268.71844669,0.00011,2]
[340405260,1729213846324,-270.76000268,0.00011,2]
[340405261,1729213846425,-11376.70751758,0.00011,2]
[340405262,1729213846437,-1139.9999995,0.00011,2]
[340405263,1729213846452,-549.96057904,0.00011,2]
[340405264,1729213846555,-15283.75980074,0.00011,2]
[340405265,1729213846567,-9831.76687634,0.00011,2]
[340405266,1729213846578,-8179.73972213,0.00011,2]
[340405276,1729213914535,335.66,9.695e-05,2]
[340405277,1729214321217,550.0,0.0001,2]
[340405280,1729214478769,172.13,0.00010237,2]
[340405281,1729214514948,23890.0,0.00010237,2]
[340405282,1729214542197,250.0,0.0001028,2]
[340405283,1729214622057,358.0,8.387e-05,2]
[340405284,1729214655396,250.0,0.00010294,2]
[340405285,1729214664606,550.0,0.00010386,2]
[340405286,1729214664625,198.64,0.00010386,2]
[340405287,1729214743194,250.21,0.00010328,2]
[340405288,1729214818980,900.0,0.000215,40]
[340405289,1729214828139,-186.71,0.0001059,2]
[340405290,1729214828159,-200.0,0.00010607,2]
[340405291,1729214828180,-358.0,0.00010651,2]
[340405292,1729214828201,-300.0,0.00010899,2]
[340405293,1729214828222,-1000.0,0.000109,2]
[340405294,1729214828243,-170.37924262,0.000109,2]
[340405295,1729214828263,-1000.0,0.000109,2]
[340405296,1729214828283,-726.49877337,0.000109,2]
[340405297,1729214835020,932.9343109,0.00021,30]
[340405299,1729214877215,-800.0,0.0001049,2]
[340405300,1729214887533,-740.0,0.0001049,2]
[340405301,1729214896831,-351.15,0.0001049,2]
[340405311,1729214964386,451.19532462,0.00025,120]
[340405312,1729215025213,3127.14,0.00010266,2]
[340405319,1729215031657,-1686.668325,0.00010437,2]
[340405320,1729215031667,-6.7013,0.0001049,2]
[340405321,1729215031676,-44.76751302,0.00010654,2]
[340405322,1729215031687,-138.23248698,0.00010654,2]
[340405323,1729215031697,-300.0,0.00010899,2]
[340405324,1729215031707,-100.07342663,0.000109,2]
[340405325,1729215031716,-7500.0,0.000109,2]
[340405326,1729215031725,-261.8447,0.000109,2]
[340405327,1729215031735,-1000.0,0.000109,2]
[340405328,1729215031744,-397.907,0.00010911,2]
[340405329,1729215031753,-150.0,0.00010929,2]
[340405330,1729215031763,-809.0,0.0001093,2]
[340405331,1729215031772,-1084.0,0.0001093,2]
[340405332,1729215031946,-812.0,0.0001093,2]